{"text_format":"3","workbook":"xlsx","n_sheets":2,"sheets":["Aloitus","Hääjuhlien budjetti"],"read":"whole","date_system":"1900"}

{"sheet":"Aloitus","index":0,"n_rows":7,"n_cols":2,"rows_kept":7}
[null,"TIETOJA TÄSTÄ MALLISTA"]
[null,"Tähän malliin voit kirjata häiden eri osa-alueiden todelliset kulut ja verrata niitä budjetoituihin summiin."]
[null,"Syötä pukujen, koristeluiden, lahjojen, kukkien, musiikin, valokuvauksen, juhlatilaisuuden, paperitavaran, matkojen ja sekalaiset kulut vastaaviin taulukkoihin."]
[null,"Arvioidut kokonaiskulut ja todelliset kokonaiskulut lasketaan automaattisesti."]
[null,"Muistiinpano: "]
[null,"Lisäohjeita on annettu HÄÄBUDJETTI-laskentataulukon sarakkeessa A. Tämä teksti on piilotettu tarkoituksella. Jos haluat poistaa tekstin, valitse sarake A ja valitse sitten POISTA. Jos haluat tuoda tekstin näkyviin, valitse sarake A ja muuta sitten fonttiväriä."]
[null,"Jos haluat lisätietoja jostakin taulukosta, paina kyseisessä taulukossa VAIHTO ja sitten F10-näppäintä, valitse TAULUKKO-vaihtoehto ja valitse sitten VAIHTOEHTOINEN TEKSTI."]

{"sheet":"Hääjuhlien budjetti","index":1,"n_rows":93,"n_cols":4,"rows_kept":93,"merged":[[0,1,0,3],[2,1,2,3],[6,1,6,3],[15,1,15,3],[25,1,25,3],[34,1,34,3],[43,1,43,3],[50,1,50,3],[59,1,59,3],[68,1,68,3],[77,1,77,3],[85,1,85,3]]}
[null,"HÄÄJUHLAN BUDJETTI"]
[]
[null,"KULUT YHTEENSÄ "]
[null,"Kohde ","Arvioitu","Toteutunut"]
[null,"Kulut yhteensä ",{"$f":"SUM(Vaatetus[[#Totals],[Arvio]],Koristeet[[#Totals],[Arvio]],Lahjat[[#Totals],[Arvio]],Kukat[[#Totals],[Arvio]],Musiikki[[#Totals],[Arvio]],Valokuvaus[[#Totals],[Arvio]],Hääjuhla[[#Totals],[Arvio]],Paperi_ja_painotuotteet[[#Totals],[Arvio]],Matkat[[#Totals],[Arvio]],MuutKulut[[#Totals],[Arvio]])","v":0},{"$f":"SUM(Vaatetus[[#Totals],[Todellinen]],Koristeet[[#Totals],[Todellinen]],Lahjat[[#Totals],[Todellinen]],Kukat[[#Totals],[Todellinen]],Musiikki[[#Totals],[Todellinen]],Valokuvaus[[#Totals],[Todellinen]],Hääjuhla[[#Totals],[Todellinen]],Paperi_ja_painotuotteet[[#Totals],[Todellinen]],Matkat[[#Totals],[Todellinen]],MuutKulut[[#Totals],[Todellinen]],)","v":0}]
[]
[null,"VAATETUS"]
[null,"Kohde ","Arvio","Todellinen"]
[null,"Kihlasormus"]
[null,"Vihkisormukset"]
[null,"Hääpuku"]
[null,"Huntu/päähine"]
[null,"Muut:"]
[null,"Vaatetus yhteensä",{"$f":"SUBTOTAL(109,Vaatetus[Arvio])","v":0},{"$f":"SUBTOTAL(109,Vaatetus[Todellinen])","v":0}]
[]
[null,"KORISTEET"]
[null,"Kohde ","Arvio","Todellinen"]
[null,"Rusetit kirkonpenkeille / muille istuimille"]
[null,"Pöytien keskelle asetettavat koriste-esineet (ei sis. kukkia)"]
[null,"Kynttilät"]
[null,"Valaistus"]
[null,"Ilmapallot"]
[null,"Muut:"]
[null,"Koristeet yhteensä",{"$f":"SUBTOTAL(109,Koristeet[Arvio])","v":0},{"$f":"SUBTOTAL(109,Koristeet[Todellinen])","v":0}]
[]
[null,"LAHJAT"]
[null,"Kohde ","Arvio","Todellinen"]
[null,"Avustajat"]
[null,"Morsian ja sulhanen"]
[null,"Vanhemmat"]
[null,"Lukijat / muut osallistujat"]
[null,"Muut:"]
[null,"Lahjat yhteensä",{"$f":"SUBTOTAL(109,Lahjat[Arvio])","v":0},{"$f":"SUBTOTAL(109,Lahjat[Todellinen])","v":0}]
[]
[null,"KUKAT"]
[null,"Kohde ","Arvio","Todellinen"]
[null,"Kukkakimput"]
[null,"Napinläpikukkaset"]
[null,"Rintakukat"]
[null,"Seremonia"]
[null,"Muut:"]
[null,"Kukat yhteensä",{"$f":"SUBTOTAL(109,Kukat[Arvio])","v":0},{"$f":"SUBTOTAL(109,Kukat[Todellinen])","v":0}]
[]
[null,"MUSIIKKI"]
[null,"Kohde ","Arvio","Todellinen"]
[null,"Hääseremonian muusikot"]
[null,"Juhlatilaisuuden bändi/DJ"]
[null,"Muut:"]
[null,"Musiikki yhteensä",{"$f":"SUBTOTAL(109,Musiikki[Arvio])","v":0},{"$f":"SUBTOTAL(109,Musiikki[Todellinen])","v":0}]
[]
[null,"VALOKUVAUS"]
[null,"Kohde ","Arvio","Todellinen"]
[null,"Muodolliset kuvat"]
[null,"Salaa otetut"]
[null,"Ylimääräiset kopiot"]
[null,"Valokuva-albumit"]
[null,"Muut:"]
[null,"Valokuvaus yhteensä",{"$f":"SUBTOTAL(109,Valokuvaus[Arvio])","v":0},{"$f":"SUBTOTAL(109,Valokuvaus[Todellinen])","v":0}]
[]
[null,"HÄÄJUHLA "]
[null,"Kohde ","Arvio","Todellinen"]
[null,"Tilamaksut"]
[null,"Pöydät ja tuolit"]
[null,"Ruoka"]
[null,"Liinavaatteet"]
[null,"Muut:"]
[null,"Vastaanotto yhteensä (ei sisällä musiikkia ja koristeita)",{"$f":"SUBTOTAL(109,Hääjuhla[Arvio])","v":0},{"$f":"SUBTOTAL(109,Hääjuhla[Todellinen])","v":0}]
[]
[null,"PAPERITAVARA JA TULOSTAMINEN"]
[null,"Kohde ","Arvio","Todellinen"]
[null,"Kutsut"]
[null,"Ilmoitukset"]
[null,"Kiitoskortit"]
[null,"Omat paperitavarat"]
[null,"Muut:"]
[null,"Paperitavara/tulostaminen yhteensä",{"$f":"SUBTOTAL(109,Paperi_ja_painotuotteet[Arvio])","v":0},{"$f":"SUBTOTAL(109,Paperi_ja_painotuotteet[Todellinen])","v":0}]
[]
[null,"MATKAT"]
[null,"Kohde ","Arvio","Todellinen"]
[null,"Limusiinit/vaunut"]
[null,"Pysäköinti"]
[null,"Taksit"]
[null,"Muut:"]
[null,"Matkat yhteensä",{"$f":"SUBTOTAL(109,Matkat[Arvio])","v":0},{"$f":"SUBTOTAL(109,Matkat[Todellinen])","v":0}]
[]
[null,"MUUT KULUT"]
[null,"Kohde ","Arvio","Todellinen"]
[null,"Vihkitoimituksen suorittaja"]
[null,"Kirkon/seremoniapaikan maksu"]
[null,"Hääjuhlan koordinaattori"]
[null,"Harjoitusateria"]
[null,"Muut:"]
[null,"Muut kulut yhteensä",{"$f":"SUBTOTAL(109,MuutKulut[Arvio])","v":0},{"$f":"SUBTOTAL(109,MuutKulut[Todellinen])","v":0}]